Workbook

Sheet Pagina Iniziale
B3: Manuale di
B4: Matematica finanziaria
B5: Carocci editore - 2012
B7: Marco Micocci - Giovanni Masala
B9: Capitolo 4

Sheet TIR e REA
B1: Calcolo del TIR e del REA
B2: Importi | C2: -2000 | D2: 450 | E2: 550 | F2: 650 | G2: 600 | H2: 500 | I2: 400 | J2: 300 | K2: 200
B3: Epoche | C3: 0 | D3: 1 | E3: 2 | F3: 3 | G3: 4 | H3: 5 | I3: 6 | J3: 7 | K3: 8
B5: Tasso | C5: 0.1
B7: REA | C7: =NPV(C5,D2:K2)+C2 -> 545.30
B8: TIR | C8: =IRR(C2:K2) -> 17.92%
B11: Epoche t | C11: Importi | D11: i(0, t-1, t) | E11: v(0,t) | F11: Importi att.ti
B12: 0 | C12: -2000 | E12: 1.00000 | F12: =+C12*E12 -> -2000.0
B13: 1 | C13: 450 | D13: 0.095 | E13: =1/(1+D13) -> 0.91324 | F13: =+C13*E13 -> 411.0
B14: 2 | C14: 550 | D14: 0.080 | E14: =+E13*(1/(1+D14)) -> 0.84559 | F14: 465.1
B15: 3 | C15: 650 | D15: 0.120 | E15: =+E14*(1/(1+D15)) -> 0.75500 | F15: 490.7
B16: 4 | C16: 600 | D16: 0.110 | E16: 0.68018 | F16: 408.1
B17: 5 | C17: 500 | D17: 0.100 | E17: 0.61834 | F17: 309.2
B18: 6 | C18: 400 | D18: 0.090 | E18: 0.56729 | F18: 226.9
B19: 7 | C19: 300 | D19: 0.095 | E19: 0.51807 | F19: 155.4
B20: 8 | C20: 200 | D20: 0.087 | E20: 0.47660 | F20: 95.3
E22: REA | F22: =SUM(F12:F20) -> 561.7

Sheet TRM e PP
B1: Calcolo del TRM
B2: Epoche | C2: Importi | E2: Montante finale
B3: 0 | C3: -1100 | E3: =+C3 -> -1100.0
B4: 1 | C4: 750 | E4: =IF(E3>0,+E3*(1+$C$13)^(B4-B3)+C4,+E3*(1+$C$14)^(B4-B3)+C4) -> -515.0
B5: 2 | C5: 580 | E5: =IF(E4>0,+E4*(1+$C$13)^(B5-B4)+C5,+E4*(1+$C$14)^(B5-B4)+C5) -> -12.3
B6: 3 | C6: -420 | E6: -434.1
B7: 4 | C7: 200 | E7: -299.2
B8: 5 | C8: 100 | E8: -244.1
B9: 6 | C9: 200 | E9: -80.7
B10: 7 | C10: 200 | E10: 107.2
B11: 8 | C11: 30 | E11: 147.9
B13: tasso creditore | C13: 0.10
B14: tasso debitore | C14: 0.15
B16: Calcolo del Payback Period
B17: Epoche | C17: Importi | E17: Cumulato | F17: Segno
B18: 0 | C18: -1100 | E18: =+C18 -> -1100 | F18: =IF(E18>0, "+"," -") -> -
B19: 1 | C19: 750 | E19: =+E18+C19 -> -350 | F19: =IF(E19>0, "+"," -") -> -
B20: 2 | C20: 580 | E20: =+E19+C20 -> 230 | F20: +
B21: 3 | C21: -420 | E21: -190 | F21: -
B22: 4 | C22: 200 | E22: 10 | F22: +
B23: 5 | C23: 100 | E23: 110 | F23: +
B24: 6 | C24: 200 | E24: 310 | F24: +
B25: 7 | C25: 200 | E25: 510 | F25: +
B26: 8 | C26: 30 | E26: 540 | F26: +
